Cogmind - Beta 16 @@@ ROGUE MODE // 2026.01.05 @ 15:35:01 // Winter2019/RPGLIKE Player: Gallgagger Result: Destroyed by Hammer Turret with Hammerchucker Performance ------------- Evolutions (4) 2000 Regions Visited (18) 3600 Robots Destroyed (752) 3760 Value Destroyed (33300) 33300 Prototype IDs (36) 720 Alien Tech Used (0) 0 Bonus (23637) 23637 TOTAL SCORE: 67017 Bonus ------- Triggered High Security 2000 High Alert Combat Kills 19023 Follower Combat Kills 547 Destroyed Unchained 1000 Entered Garrisons 400 Aligned with FarCom 300 Met Imprinter 300 Acquired ECA 300 Friendly Fire -233 Cogmind --------- Core Integrity 0/1150 Matter 321/400 Energy 195/200 System Corruption 1% Temperature Cool (9) Movement Flying (34) Location -6/Factory Parts ------- > --- POWER (2) -------- Micro Nuclear Core Micro Nuclear Core > --- PROPULSION (6) --- Surge Thruster Surge Thruster Flying Fortress v7 > --- UTILITY (8) ------ Experimental Heat Sink Triangulator Experimental Armor Integrity Analyzer Kinecellerator Weapon Cycler Weapon Cycler Graphene Brace Long-range Tractor Beam > --- WEAPON (5) ------- Enhanced Autogun Enhanced Autogun Enhanced Autogun Enhanced Autogun Enhanced Autogun > --- INVENTORY (3) ---- Encrypted Comm Array Medium Reactive Plating Peak State ------------ > --- POWER ------------ Micro Nuclear Core Micro Nuclear Core > --- PROPULSION ------- Surge Thruster Surge Thruster Flying Fortress v7 > --- UTILITY ---------- Spectral Analyzer Experimental Armor Integrity Analyzer Kinecellerator Weapon Cycler Weapon Cycler Graphene Brace System Restoration Module Long-range Tractor Beam > --- WEAPON ----------- Enhanced Autogun Enhanced Autogun Enhanced Autogun Enhanced Autogun Enhanced Autogun > --- INVENTORY -------- Encrypted Comm Array Insulated Plating [Rating: 114] Favorites ----------- Power Micro Nuclear Core Engine Ion Engine Power Core Micro Nuclear Core Propulsion Surge Thruster Wheel Wheel Hover Unit Hover Unit Flight Unit Surge Thruster Utility Weapon Cycler Device Weapon Cycler Processor Experimental Armor Integrity Analyzer Protection Insulated Plating Weapon Enhanced Autogun Energy Gun Particle Gun Energy Cannon Ion Burst Cannon Ballistic Gun Enhanced Autogun Special Weapon RU-N14's Throwing Claymores Slashing Weapon Axe Build | -11 -10 -10 -10 -9 -8 -8 -8 -8 -7 -7 -7 -7 -7 -7 -7 -7 -6 -6 ------- Run | Yrd Mat Min Exi Min Mat Gar Mat Sto Fac Was Fac Gar Fac Low Low Zio Pro Fac Slots Evolved 17 | 3 3 1 2 1 2 . 1 1 1 . 1 . 1 . . . . . Power 1 | . . . . . . . . . . . . . 1 . . . . . Propulsion 5 | 1 1 . 1 . 1 . . . . . 1 . . . . . . . Utility 7 | 1 . 1 1 1 1 . 1 1 . . . . . . . . . . Weapon 4 | 1 2 . . . . . . . 1 . . . . . . . . . Parts Attached 74 | 9 9 2 13 1 9 . 5 5 1 . 5 1 4 1 . 7 . 2 Power 6 | 2 . . 3 . . . . . . . . . 1 . . . . . Engine 2 | 2 . . . . . . . . . . . . . . . . . . Core 4 | . . . 3 . . . . . . . . . 1 . . . . . Reactor . | . . . . . . . . . . . . . . . . . . . Propulsion 10 | 2 3 . 1 . 1 . . 1 . . 2 . . . . . . . Treads . | . . . . . . . . . . . . . . . . . . . Leg . | . . . . . . . . . . . . . . . . . . . Wheel 2 | 2 . . . . . . . . . . . . . . . . . . Hover 3 | . 3 . . . . . . . . . . . . . . . . . Flight 5 | . . . 1 . 1 . . 1 . . 2 . . . . . . . Utility 35 | 2 . 2 8 1 5 . 4 1 . . 3 . 3 1 . 3 . 2 Device 20 | 2 . 2 2 . 4 . 1 1 . . 2 . 3 1 . . . 2 Storage . | . . . . . . . . . . . . . . . . . . . Processor 7 | . . . 4 . . . . . . . . . . . . 3 . . Hackware . | . . . . . . . . . . . . . . . . . . . Protection 8 | . . . 2 1 1 . 3 . . . 1 . . . . . . . Artifact . | . . . . . . . . . . . . . . . . . . . Weapon 23 | 3 6 . 1 . 3 . 1 3 1 . . 1 . . . 4 . . Energy Gun 4 | 2 2 . . . . . . . . . . . . . . . . . Energy Cannon 1 | . . . . . . . . 1 . . . . . . . . . . Ballistic Gun 13 | 1 4 . 1 . 3 . 1 2 1 . . . . . . . . . Ballistic Cannon . | . . . . . . . . . . . . . . . . . . . Launcher . | . . . . . . . . . . . . . . . . . . . Special Weapon 4 | . . . . . . . . . . . . . . . . 4 . . Impact Weapon . | . . . . . . . . . . . . . . . . . . . Slashing Weapon 1 | . . . . . . . . . . . . 1 . . . . . . Piercing Weapon . | . . . . . . . . . . . . . . . . . . . Special Melee Weapon . | . . . . . . . . . . . . . . . . . . . Unidentified Prototypes 13 | . . . 3 . 1 . . 2 . . 1 . . . . 5 . 1 Parts Lost 2 | . . . 1 . . . . . . . . . . . . 1 . . Power . | . . . . . . . . . . . . . . . . . . . Propulsion . | . . . . . . . . . . . . . . . . . . . Utility 2 | . . . 1 . . . . . . . . . . . . 1 . . Weapon . | . . . . . . . . . . . . . . . . . . . Highest Loss Streak 1 | . . . 1 . . . . . . . . . . . . 1 . . To Critical Strikes . | . . . . . . . . . . . . . . . . . . . Average Backups 2 | . 1 . . . 1 2 2 2 2 3 3 3 2 3 3 2 2 1 Power . | . . . . . . . . . . 1 . . . . . . . . Propulsion . | . . . . . . . . . . . . . . . . . . . Utility 1 | . . . . . 1 2 1 1 1 1 3 2 2 2 2 1 1 . Weapon . | . . . . . . . . 1 1 . . . . . . . . . Tool/Special . | . . . . . . . . . . . . . . . . . . . Unused Backups 5 | . . . . . . . . . . 2 . 1 . . . 1 . 1 Power 1 | . . . . . . . . . . 1 . . . . . . . . Propulsion . | . . . . . . . . . . . . . . . . . . . Utility 2 | . . . . . . . . . . . . 1 . . . 1 . . Weapon 1 | . . . . . . . . . . 1 . . . . . . . . Tool/Special 1 | . . . . . . . . . . . . . . . . . . 1 Average Slot Usage (%) 83 | . 100 96 66 77 78 81 81 82 83 84 84 85 85 85 85 84 85 85 Engine 1 | . 12 9 2 . . . . . . . . . . . . . . . Core 5 | . . . 5 7 6 6 5 5 5 5 5 5 5 9 9 9 9 9 Hover 1 | . 17 27 1 . . . . . . . . . . . . . . . Flight 11 | . . . 7 7 8 12 11 11 10 10 11 15 14 14 14 14 14 14 Device 24 | . 25 22 6 14 19 25 28 27 26 26 25 25 31 33 33 30 28 30 Processor 1 | . . . 5 7 3 . . . . . . . . . . 2 4 4 Protection 9 | . . . 3 12 13 12 11 14 15 15 15 15 8 4 4 3 4 2 Ballistic Gun 24 | . 19 37 33 28 26 25 23 22 25 26 25 22 24 23 23 22 23 23 Peak Build Rating 114 | 9 16 17 76 64 76 76 86 92 95 95 102 100 107 107 107 114 110 113 Average Rating 83 | 5 11 16 51 63 68 76 84 89 94 95 97 99 102 106 107 109 110 111 On Entrance 75 | . 9 16 17 62 64 76 76 85 91 95 95 100 100 107 107 107 110 110 Avg Prop Armor Cover (%) 2 | . 6 . . . . . . . . . . . 2 2 . . . . Naked Turns . | . . . . . . . . . . . . . . . . . . . Heaviest Build 61 | 10 19 20 57 34 34 31 38 42 45 45 58 58 58 56 56 61 56 56 Greatest Support 63 | 31 31 23 55 55 58 58 58 58 58 58 61 63 61 61 61 61 61 63 Greatest Overweight (x) 5 | . . . 1 . . . . . . . . . . . 5 . . . Average Overweight (x) . | . . . . . . . . . . . . . . . . . . . Largest Inventory Capacity 3 | 2 2 3 3 3 3 3 3 3 3 3 3 3 3 3 3 3 3 3 Average Capacity 2 | 2 2 2 3 3 3 3 3 3 3 3 3 3 3 3 3 3 3 3 Most Carried 3 | 1 2 3 3 3 3 3 3 3 3 3 3 3 3 3 3 3 2 2 Average Carried 2 | . 1 2 2 2 2 3 2 2 2 3 3 2 2 2 3 2 2 1 Final Capacity 3 | 2 2 3 3 3 3 3 3 3 3 3 3 3 3 3 3 3 3 3 Final Carried 3 | 1 2 3 2 2 3 3 3 3 3 3 3 2 3 3 3 2 2 2 Class Distribution -------------------- 62% | Scavenger-Gunner 13% | Gunner 6% | Scavenger-Tank 4% | Commander-Tank 4% | Commander-Gunner 3% | Mutant Dominant Class ---------------- Mutant | -10/Materials Scavenger-Gunner | -10/Mines Gunner | -10/Exiles Scavenger-Gunner | -9/Mines Gunner | -8/Materials Gunner | -8/Garrison Commander-Gunner | -8/Materials Scavenger-Tank | -8/Storage Commander-Tank | -7/Factory Scavenger-Tank | -7/Waste Scavenger-Gunner | -7/Factory Scavenger-Gunner | -7/Garrison Scavenger-Gunner | -7/Factory Scavenger-Gunner | -7/Lower Caves Scavenger-Gunner | -7/Lower Caves Scavenger-Gunner | -7/Zion Scavenger-Gunner | -6/Proximity Caves Scavenger-Gunner | -6/Factory Resources | -11 -10 -10 -10 -9 -8 -8 -8 -8 -7 -7 -7 -7 -7 -7 -7 -7 -6 -6 ----------- Run | Yrd Mat Min Exi Min Mat Gar Mat Sto Fac Was Fac Gar Fac Low Low Zio Pro Fac Matter Collected 25998 | 275 307 332 3095 141 1947 1320 1950 2451 593 . 2066 1596 7182 320 370 158 558 1337 Remotely 7459 | . . . . . . . . . . . . . 4716 320 370 158 558 1337 Salvage Created 31270 | 82 901 501 2509 91 2216 1699 2987 3786 706 . 2592 1150 8895 180 533 . 862 1580 Parts 1618 | 5 69 28 141 17 129 97 167 186 39 . 187 67 338 24 24 . 26 74 Haulers Intercepted 16 | . . . . . 1 . 1 6 1 . 3 . 3 . . . . 1 Recyclers Shooed 3 | . 1 1 . . . . . . . . . . . . . . . 1 Parts Field Recycled . | . . . . . . . . . . . . . . . . . . . Retrieved Matter . | . . . . . . . . . . . . . . . . . . . Parts Self-Destructed 71 | . . . . . . . . . . . . . . 21 24 . 26 . Prevented . | . . . . . . . . . . . . . . . . . . . Parts Restored . | . . . . . . . . . . . . . . . . . . . Kills | -11 -10 -10 -10 -9 -8 -8 -8 -8 -7 -7 -7 -7 -7 -7 -7 -7 -6 -6 ------- Run | Yrd Mat Min Exi Min Mat Gar Mat Sto Fac Was Fac Gar Fac Low Low Zio Pro Fac Combat Hostiles Destroyed 659 | . 28 13 63 6 51 42 61 63 19 . 58 29 176 7 9 . 11 23 Guns 657 | . 28 13 63 6 51 42 61 63 19 . 58 29 175 7 9 . 11 22 AOE 2 | . . . . . . . . . . . . . 1 . . . . 1 Classes Destroyed 23 | 2 5 . 4 1 5 . . 2 . . . 1 . 2 . . . 1 Worker 16 | . 2 1 . . 2 . . 2 . . 3 . 2 . . . . 4 Builder 8 | . . . . 2 . . 2 1 . . 1 . 1 . . . . 1 Tunneler 5 | 1 . 1 . . 1 . 1 . . . . . . . . . . 1 Hauler 16 | . . . . . 1 . 1 6 1 . 3 . 3 . . . . 1 Recycler 12 | 1 2 2 . . 1 . . 5 . . 1 . . . . . . . Mechanic 9 | . . . . . . . . 3 . . . 1 5 . . . . . Operator 10 | . 2 . . . . . 1 3 . . 2 . 1 . . . . 1 Turret 5 | . . . . . . . . . . . . . . . . . . 5 Watcher 9 | . 1 . . . 1 . . 2 1 . . 1 2 . . . . 1 Swarmer 86 | . 6 9 . . 7 11 3 3 3 . 8 10 14 . 3 . . 9 Cutter 3 | . . . . . 3 . . . . . . . . . . . . . Grunt 300 | . 22 4 30 6 27 19 30 40 8 . 27 10 59 3 . . 7 8 Brawler 32 | . . . 5 . 1 . 1 2 . . 4 2 16 . . . 1 . Duelist 33 | . . . 3 . 1 . 5 2 2 . 2 2 14 . . . 1 1 Protector 21 | . . . . . 1 . 2 1 . . 2 . 15 . . . . . Sentry 79 | . . . . . 9 7 17 12 3 . 8 2 15 . . . 1 5 Demolisher 2 | . . . . . . . . 2 . . . . . . . . . . Specialist 6 | . . . . . . . . . . . . 1 . . 3 . . 2 Hunter 62 | . . . 17 . 1 2 2 1 2 . 2 1 31 1 2 . . . Programmer 30 | . . . 7 . . 3 . . 1 . 4 1 12 1 1 . . . Heavy 3 | . . . . . 1 . 1 . . . 1 . . . . . . . Behemoth 2 | . . . . . . . . . . . . . . 1 . . 1 . Mutant 1 | . . . . . . . . . . . . . . 1 . . . . Best Kill Streak 71 | 1 5 5 12 7 9 16 21 12 5 . 11 11 71 4 6 . 10 16 Combat Bots Only 66 | . 5 5 12 6 8 16 15 9 5 . 11 10 66 4 6 . 10 11 Max Kills in Single Turn 6 | 1 2 2 2 2 2 3 2 2 1 . 3 2 2 1 2 . 2 6 Gunslinging 2 | . . 1 1 1 1 2 1 1 . . 2 1 1 . 1 . 1 . Exploded 1 | . . . . . . . . . . . . . 1 . . . . 1 Melee . | . . . . . . . . . . . . . . . . . . . Uniques/NPCs Destroyed 2 | . . . 1 . . . . . . . . . . . . . . 1 8R-AWN (-10/Exiles) GL-D0S (-6/Factory) Combat | -11 -10 -10 -10 -9 -8 -8 -8 -8 -7 -7 -7 -7 -7 -7 -7 -7 -6 -6 -------- Run | Yrd Mat Min Exi Min Mat Gar Mat Sto Fac Was Fac Gar Fac Low Low Zio Pro Fac Hostile Shots Fired 1415 | . 90 18 301 14 85 70 72 77 38 . 98 38 288 8 14 . 12 192 Missed 641 | . 30 6 114 3 40 35 39 38 22 . 50 14 131 5 2 . 6 106 Hits 774 | . 60 12 187 11 45 35 33 39 16 . 48 24 157 3 12 . 6 86 Melee 10 | . . . 1 . 3 . . 1 . . . 3 2 . . . . . Projectile 764 | . 60 12 186 11 42 35 33 38 16 . 48 21 155 3 12 . 6 86 AOE 1 | . . . . . 1 . . . . . . . . . . . . . Critical Strikes 37 | . . . 22 . 4 1 1 . . . . 2 5 . . . . 2 Actively Blocked 12 | . . . . . 2 . 1 . . . . 2 5 . . . . 2 Part Disruptions 1 | . . . . . . . . . . . . . . . 1 . . . Damage Taken 11480 | . 643 109 2753 126 902 483 567 648 158 . 546 324 2133 36 154 . 116 1782 Core 8268 | . 523 81 2038 98 618 330 399 416 114 . 334 194 1491 22 113 . 80 1417 Absorbed by Shields 25 | . . . . . . . . . . . . 25 . . . . . . Redirected to Core 7398 | . 374 81 1838 85 556 271 384 383 98 . 307 149 1370 22 113 . 63 1304 Ignored by Resistances 641 | . . . . . . 21 . 17 13 . 104 67 326 10 45 . 38 . Core Remaining (%) 92 | 100 . . . 75 . . . 100 . . . . . . . . 93 . Volleys Fired 1466 | 4 91 19 182 11 110 82 115 146 39 . 88 77 353 15 18 26 21 69 Largest 5 | 2 4 4 4 4 4 4 4 4 5 . 5 5 5 5 5 5 5 5 Hottest 125 | 70 92 92 92 92 98 98 100 100 125 . 125 125 125 125 125 125 125 125 Shots Fired 6290 | 8 193 76 713 42 440 326 460 584 186 . 438 382 1766 75 90 62 105 344 Gun 6273 | 8 193 76 713 42 440 326 460 584 186 . 438 382 1766 75 90 45 105 344 Cannon . | . . . . . . . . . . . . . . . . . . . Launcher . | . . . . . . . . . . . . . . . . . . . Special 17 | . . . . . . . . . . . . . . . . 17 . . Kinetic 6188 | 4 112 76 713 42 440 326 460 584 186 . 438 382 1766 75 90 45 105 344 Thermal 85 | 4 81 . . . . . . . . . . . . . . . . . Explosive 17 | . . . . . . . . . . . . . . . . 17 . . Electromagnetic . | . . . . . . . . . . . . . . . . . . . Robot Hit Streak 51 | 3 15 8 14 16 27 33 19 31 22 . 20 24 51 25 33 . 36 37 Robot Miss Streak 7 | 1 4 3 7 2 5 2 6 5 4 . 4 2 4 1 2 . 1 4 Penetration Max . | . . . . . . . . . . . . . . . . . . . Secondary Targets 196 | . 2 6 10 2 13 15 19 18 2 . 19 8 68 . 4 . 3 7 Max Gunslinging Chain 2 | . 1 2 1 1 1 2 1 2 1 . 2 1 2 . 1 . 1 1 Shots Hit Robots 4107 | 6 129 43 437 29 290 170 308 407 119 . 309 140 1327 51 59 . 82 201 Core Hits 1581 | 4 57 20 135 12 107 76 129 153 46 . 136 57 503 20 15 . 30 81 Critical Kills 18 | . . 1 1 . 5 . 3 2 1 . 2 . 2 . . . . 1 Critical Parts Destroyed 45 | . . 1 7 3 7 2 . 4 3 . 4 2 8 . 1 . 1 2 Critical Strikes 67 | . 3 2 9 3 12 2 3 6 4 . 6 2 10 . 1 . 1 3 Burn 3 | . 3 . . . . . . . . . . . . . . . . . Destroy 64 | . . 2 9 3 12 2 3 6 4 . 6 2 10 . 1 . 1 3 Melee Attacks 282 | . . . . . . . . . . . . 282 . . . . . . Impact . | . . . . . . . . . . . . . . . . . . . Slashing 282 | . . . . . . . . . . . . 282 . . . . . . Piercing . | . . . . . . . . . . . . . . . . . . . Sneak Attacks . | . . . . . . . . . . . . . . . . . . . Combat Hostiles . | . . . . . . . . . . . . . . . . . . . Follow-up Attacks . | . . . . . . . . . . . . . . . . . . . Damage Inflicted 81927 | 54 1642 654 6365 464 5062 3509 6123 7966 2399 . 6815 3379 27879 1230 1161 . 1820 5405 Guns 80939 | 54 1642 654 6365 464 5062 3509 6123 7966 2399 . 6815 3379 27722 1230 1161 . 1820 4574 Cannons . | . . . . . . . . . . . . . . . . . . . Explosions 988 | . . . . . . . . . . . . . 157 . . . . 831 Melee . | . . . . . . . . . . . . . . . . . . . Ramming . | . . . . . . . . . . . . . . . . . . . Kinetic 79969 | 30 696 654 6365 464 5062 3509 6123 7966 2399 . 6815 3379 27722 1230 1161 . 1820 4574 Thermal 1127 | 24 946 . . . . . . . . . . . 157 . . . . . Explosive 831 | . . . . . . . . . . . . . . . . . . 831 Electromagnetic . | . . . . . . . . . . . . . . . . . . . Impact . | . . . . . . . . . . . . . . . . . . . Slashing . | . . . . . . . . . . . . . . . . . . . Piercing . | . . . . . . . . . . . . . . . . . . . Highest Corruption 7 | . . . 4 4 . 2 2 2 1 7 7 5 6 . 1 1 . 1 Average Corruption 3 | . . . 2 4 . 2 2 2 1 4 3 4 4 . 1 1 . 1 Corruption Purged 14 | . . . . . . . . . . . 5 . 9 . . . . . Corruption Blocked . | . . . . . . . . . . . . . . . . . . . Effects 163 | . . . 15 8 . 9 12 23 . 1 28 49 13 . 3 1 . 1 Message Errors 30 | . . . 3 2 . 1 5 4 . . 5 9 . . 1 . . . Matter Fused 35 | . . . 5 . . 2 3 4 . . 7 9 3 . 1 1 . . Heat Flow Errors 17 | . . . 2 1 . . . 4 . . 1 8 1 . . . . . Energy Discharges 27 | . . . 1 3 . . . 4 . 1 3 11 4 . . . . . Parts Rejected 4 | . . . 1 . . 1 . . . . 2 . . . . . . . Data Loss (minor) 15 | . . . 2 . . . 2 2 . . 2 4 2 . 1 . . . Data Loss (major) 10 | . . . . . . 1 1 3 . . 2 3 . . . . . . Misfires 9 | . . . 1 . . 1 . 1 . . 2 2 2 . . . . . Alerts 1 | . . . . . . . 1 . . . . . . . . . . . Weapon Failures 15 | . . . . 2 . 3 . 1 . . 4 3 1 . . . . 1 Overload Shots . | . . . . . . . . . . . . . . . . . . . Overflow Damage 74 | . . . . . . . . . . . . . . . . . . 74 Projectiles . | . . . . . . . . . . . . . . . . . . . Explosions 74 | . . . . . . . . . . . . . . . . . . 74 Melee . | . . . . . . . . . . . . . . . . . . . Knockbacks . | . . . . . . . . . . . . . . . . . . . Impact . | . . . . . . . . . . . . . . . . . . . Kinetic . | . . . . . . . . . . . . . . . . . . . Secondary . | . . . . . . . . . . . . . . . . . . . Self-Inflicted Damage 239 | . . . . . . . . . . . . . . . . . . 239 Shots 3 | . . . . . . . . . . . . . . . . . . 3 Rammed . | . . . . . . . . . . . . . . . . . . . Targets Rammed . | . . . . . . . . . . . . . . . . . . . Kicked . | . . . . . . . . . . . . . . . . . . . Crushed . | . . . . . . . . . . . . . . . . . . . Highest Temperature 334 | . 53 50 171 150 180 67 87 302 248 . 334 293 152 125 113 196 161 244 Average Temperature 52 | . 12 21 26 112 67 34 38 82 87 . 102 70 50 48 45 94 73 52 Received Heat Transfer 2556 | . 264 21 162 69 288 144 180 297 69 . 156 48 507 . 18 . 9 324 Effects 5 | . . . . . . . . 1 . . 1 3 . . . . . . Energy Bleed 1 | . . . . . . . . 1 . . . . . . . . . . Interference 4 | . . . . . . . . . . . 1 3 . . . . . . Siege Activations . | . . . . . . . . . . . . . . . . . . . Martial Activations . | . . . . . . . . . . . . . . . . . . . Shielding Activations . | . . . . . . . . . . . . . . . . . . . Robots Disrupted . | . . . . . . . . . . . . . . . . . . . Combat Hostiles . | . . . . . . . . . . . . . . . . . . . Robots Corrupted . | . . . . . . . . . . . . . . . . . . . Combat Hostiles . | . . . . . . . . . . . . . . . . . . . Parts Fried . | . . . . . . . . . . . . . . . . . . . Impact Corruptions . | . . . . . . . . . . . . . . . . . . . Robots Melted . | . . . . . . . . . . . . . . . . . . . Combat Hostiles . | . . . . . . . . . . . . . . . . . . . Parts Melted 10 | . 8 . . . 1 . . . 1 . . . . . . . . . Heat Transferred 2740 | 74 2516 . . . . . . . . . . . 150 . . . . . Parts Sabotaged . | . . . . . . . . . . . . . . . . . . . Parts Stolen . | . . . . . . . . . . . . . . . . . . . Parts Stripped . | . . . . . . . . . . . . . . . . . . . Power Chain Reactions . | . . . . . . . . . . . . . . . . . . . Alert | -11 -10 -10 -10 -9 -8 -8 -8 -8 -7 -7 -7 -7 -7 -7 -7 -7 -6 -6 ------- Run | Yrd Mat Min Exi Min Mat Gar Mat Sto Fac Was Fac Gar Fac Low Low Zio Pro Fac Maximum Alert Level 5 | . 2 2 . . 4 5 5 5 5 4 5 5 5 . . . . 2 Low Security (%) 9 | 100 39 1 . 100 10 . . . . . . . . . . . . 55 Level 1 7 | . 23 88 . . 13 . . . . . . . . . . . . 19 Level 2 7 | . 36 10 . . 19 . . . . . 13 . . . . . . 25 Level 3 13 | . . . . . 53 12 12 8 8 50 46 . . . . . . . Level 4 16 | . . . . . 3 27 25 37 64 50 27 9 7 . . . . . Level 5 28 | . . . . . . 60 3 53 21 . 8 90 18 . . . . . High Security 17 | . . . . . . . 57 . 5 . 3 . 74 . . . . . Max Security . | . . . . . . . . . . . . . . . . . . . Sterilizations 3 | . . . . . 1 . 1 . . . . . 1 . . . . . Peak Influence 5859 | 5 557 425 . 135 1226 2133 2814 2366 1789 1100 1954 2767 5859 . . . . 685 Initial 1452 | . . 210 . . . 794 1039 1188 1066 1100 735 1367 1452 . . . . 44 Average 1634 | 2 289 331 . 57 677 1733 1909 1721 1454 1087 1093 2360 3314 . . . . 237 Influence Increases 20280 | 10 889 375 1330 150 1736 1359 2025 1960 969 . 1739 1400 4661 160 212 . 258 1047 Destroy 0b10 Robot/C 13180 | . 560 260 1240 120 1060 840 1320 1240 500 . 1140 580 3220 120 180 . 220 580 Destroy 0b10 Robot/NC 555 | 10 35 20 . 10 45 . 45 115 10 . 55 15 145 . . . . 50 Destroy Leader 2202 | . 132 50 . 20 256 30 266 306 124 . 264 30 518 40 10 . 20 136 Allied During Kill 721 | . . . . . 98 24 288 . 225 . . . . . 22 . 18 46 Successful Hack 283 | . 6 . . . 6 30 20 16 62 . 69 . 43 . . . . 31 Select Force Hacks 620 | . 110 . . . 220 . . 230 . . 30 . 30 . . . . . Disable Machine 615 | . . 45 . . 30 15 15 45 30 . 105 75 180 . . . . 75 Anti-Garrison Action 950 | . . . . . . 350 . . . . . 450 150 . . . . . Destroy Structure 479 | . 1 . . . 6 70 11 8 3 . 61 250 60 . . . . 9 Partial Spotted 105 | . . . . . . . 15 . 15 . 15 . 45 . . . . 15 Lose Combat Pursuer 570 | . 45 . 90 . 15 . 45 . . . . . 270 . . . . 105 Influence Decreases 20069 | 10 350 543 703 1148 514 448 1344 2428 1526 1213 835 587 1569 2375 1023 2833 186 434 Entered New Map 15229 | . . 329 371 998 . 428 1094 1626 1280 1163 315 587 1315 2169 693 2833 . 28 Time Decay 4090 | 10 350 214 322 150 494 . 150 502 206 20 470 . 254 206 310 . 186 246 Lost Part 10 | . . . 10 . . . . . . . . . . . . . . . Lost Ally 440 | . . . . . 20 20 100 . 40 30 50 . . . 20 . . 160 Purge Threat 300 | . . . . . . . . 300 . . . . . . . . . . Squads Dispatched 131 | . 9 . . . 10 . 20 15 9 . 16 . 43 . . . . 9 Investigation 45 | . 7 . . . 7 . 3 11 3 . 10 . 2 . . . . 2 Extermination 6 | . . . . . . . . . 1 . 3 . 1 . . . . 1 Reinforcement 13 | . 2 . . . 2 . 3 . 1 . 1 . 1 . . . . 3 Assault 55 | . . . . . 1 . 11 4 1 . 2 . 36 . . . . . Garrison 12 | . . . . . . . 3 . 3 . . . 3 . . . . 3 Intercept . | . . . . . . . . . . . . . . . . . . . Searches Triggered . | . . . . . . . . . . . . . . . . . . . Unchained Authorized 1 | . . . . . . . . . . . . . . . . . . 1 Construction Impeded 1 | . . . . . . . 1 . . . . . . . . . . . Haulers Reinforced . | . . . . . . . . . . . . . . . . . . . Active Scanning Responses . | . . . . . . . . . . . . . . . . . . . Cargo Convoy Interrupts . | . . . . . . . . . . . . . . . . . . . Stealth | -11 -10 -10 -10 -9 -8 -8 -8 -8 -7 -7 -7 -7 -7 -7 -7 -7 -6 -6 --------- Run | Yrd Mat Min Exi Min Mat Gar Mat Sto Fac Was Fac Gar Fac Low Low Zio Pro Fac Distress Signals 16 | . . . . . 3 . 3 . . . 2 . 3 . . . . 5 Communications Jammed . | . . . . . . . . . . . . . . . . . . . Distress Signals . | . . . . . . . . . . . . . . . . . . . Times Spotted 902 | . 41 13 65 6 69 40 76 74 24 3 68 27 241 7 9 . 7 132 Peak Tracking Total 33 | . 6 3 6 3 8 8 9 6 3 3 7 4 33 3 3 . 3 22 Tactical Retreats 25 | . 1 . 3 . 1 . 3 . . . . . 11 . . . . 6 Traps | -11 -10 -10 -10 -9 -8 -8 -8 -8 -7 -7 -7 -7 -7 -7 -7 -7 -6 -6 ------- Run | Yrd Mat Min Exi Min Mat Gar Mat Sto Fac Was Fac Gar Fac Low Low Zio Pro Fac Traps Triggered 40 | . 2 . . . 1 13 1 . 1 . 2 12 8 . . . . . Indirectly . | . . . . . . . . . . . . . . . . . . . Trap Hack Attempts . | . . . . . . . . . . . . . . . . . . . Triggered . | . . . . . . . . . . . . . . . . . . . Disarmed . | . . . . . . . . . . . . . . . . . . . Reprogrammed . | . . . . . . . . . . . . . . . . . . . Reused 1 | . . . 1 . . . . . . . . . . . . . . . Traps Extracted . | . . . . . . . . . . . . . . . . . . . Installed 1 | . . . 1 . . . . . . . . . . . . . . . Triggered 1 | . . . 1 . . . . . . . . . . . . . . . Most Traps Carried 3 | . . 3 3 2 2 1 1 . . . . . . . . . . . Machines | -11 -10 -10 -10 -9 -8 -8 -8 -8 -7 -7 -7 -7 -7 -7 -7 -7 -6 -6 ---------- Run | Yrd Mat Min Exi Min Mat Gar Mat Sto Fac Was Fac Gar Fac Low Low Zio Pro Fac Machines Disabled 71 | . . 3 9 . 2 6 2 3 2 . 7 14 13 1 2 1 1 5 Max in Single Turn 4 | . . 1 1 . 1 1 1 1 1 . 1 1 4 1 2 1 1 4 Garrison Access 3 | . . . . . . . . . 1 . 1 . 1 . . . . . Garrison Relay 11 | . . . . . . 5 . . . . . 6 . . . . . . Machines Repaired . | . . . . . . . . . . . . . . . . . . . Machines Dismantled . | . . . . . . . . . . . . . . . . . . . Machines Sabotaged 7 | . 1 . . . 2 . . 4 . . . . . . . . . . Overloaded Fab Kills . | . . . . . . . . . . . . . . . . . . . Hacking | -11 -10 -10 -10 -9 -8 -8 -8 -8 -7 -7 -7 -7 -7 -7 -7 -7 -6 -6 --------- Run | Yrd Mat Min Exi Min Mat Gar Mat Sto Fac Was Fac Gar Fac Low Low Zio Pro Fac Machines Accessed 88 | . 8 . 1 . 11 4 5 15 13 . 16 1 5 2 1 . . 6 Terminals 43 | . 5 . . . 5 4 3 12 6 . 3 1 . . . . . 4 Fabricators 13 | . . . . . . . . . 4 . 6 . 1 . . . . 2 Repair Stations 9 | . 1 . . . 1 . 1 2 . . 3 . 1 . . . . . Recycling Units 8 | . 2 . . . 2 . . 1 . . 1 . 2 . . . . . Scanalyzers 4 | . . . . . 2 . 1 . . . . . 1 . . . . . Garrison Access 7 | . . . . . 1 . . . 3 . 3 . . . . . . . Total Hacks 215 | . 15 . 1 . 23 9 16 39 34 . 40 4 10 8 1 . . 15 Successful 98 | . 7 . 1 . 12 3 6 22 14 . 11 . 6 8 1 . . 7 Failed 117 | . 8 . . . 11 6 10 17 20 . 29 4 4 . . . . 8 Catastrophic 16 | . 1 . . . . . 3 1 1 . 8 . 1 . . . . 1 Database Lockouts . | . . . . . . . . . . . . . . . . . . . Manual 134 | . 15 . 1 . 17 . 12 33 19 . 19 . 10 . . 1 . 7 Terminals 110 | . 11 . . . 12 9 11 35 13 . 8 4 . . . . . 7 Fabricators 33 | . . . . . . . . . 11 . 12 . 2 . . . . 8 Repair Stations 19 | . 1 . . . 3 . 2 3 . . 9 . 1 . . . . . Recycling Units 15 | . 3 . . . 3 . . 1 . . 3 . 5 . . . . . Scanalyzers 8 | . . . . . 3 . 3 . . . . . 2 . . . . . Garrison Access 20 | . . . . . 2 . . . 10 . 8 . . . . . . . Terminal Hacks 32 | . 1 . 1 . 3 3 2 8 3 . 1 . . 8 1 . . 1 Record 7 | . . . . . . . . . . . . . . 7 . . . . Part Schematic 1 | . . . . . . . . . . . . . . . . . . 1 Robot Analysis 5 | . 1 . . . 1 . 1 . 2 . . . . . . . . . Open Door 7 | . . . . . . 1 . 4 . . . . . 1 1 . . . Branch Access Points 3 | . . . . . . . . 1 1 . 1 . . . . . . . Emergency Access Points 1 | . . . . . . 1 . . . . . . . . . . . . Unreport Threat 2 | . . . . . . . . 2 . . . . . . . . . . Locate Traps 1 | . . . . . 1 . . . . . . . . . . . . . Hauler Manifests 2 | . . . . . 1 . . 1 . . . . . . . . . . Registered Components 1 | . . . . . . . 1 . . . . . . . . . . . Security Stations 1 | . . . . . . 1 . . . . . . . . . . . . Proto ID Catalog 1 | . . . 1 . . . . . . . . . . . . . . . Fabricator Hacks 7 | . . . . . . . . . 2 . 1 . . . . . . 4 Network Status 4 | . . . . . . . . . 2 . 1 . . . . . . 1 Load Schematic 2 | . . . . . . . . . . . . . . . . . . 2 Build 1 | . . . . . . . . . . . . . . . . . . 1 Repair Station Hacks 1 | . . . . . . . . . . . 1 . . . . . . . Scan Component 1 | . . . . . . . . . . . 1 . . . . . . . Recycling Unit Hacks . | . . . . . . . . . . . . . . . . . . . Scanalyzer 2 | . . . . . . . 2 . . . . . . . . . . . Insert Component 1 | . . . . . . . 1 . . . . . . . . . . . Analyze 1 | . . . . . . . 1 . . . . . . . . . . . Garrison Access Hacks 4 | . . . . . 1 . . . 1 . 2 . . . . . . . Unlock Access 2 | . . . . . 1 . . . . . 1 . . . . . . . Seal Access 2 | . . . . . . . . . 1 . 1 . . . . . . . Unauthorized Hacks 52 | . 6 . . . 8 . 2 14 8 . 6 . 6 . . . . 2 Terminals 27 | . 3 . . . 3 . 1 11 5 . 2 . . . . . . 2 Assimilate 6 | . . . . . . . . . 2 . 2 . . . . . . 2 Botnet 8 | . . . . . . . 1 4 3 . . . . . . . . . Sabotage 11 | . 2 . . . 2 . . 7 . . . . . . . . . . Search 2 | . 1 . . . 1 . . . . . . . . . . . . . Fabricators 7 | . . . . . . . . . 3 . 3 . 1 . . . . . Liberate 2 | . . . . . . . . . 1 . . . 1 . . . . . Fabnet 4 | . . . . . . . . . 1 . 3 . . . . . . . Haulers 1 | . . . . . . . . . 1 . . . . . . . . . Repair Stations 6 | . 1 . . . 1 . 1 2 . . . . 1 . . . . . Mechanics 1 | . . . . . . . . . . . . . 1 . . . . . Patch 5 | . 1 . . . 1 . 1 2 . . . . . . . . . . Recycling Units 9 | . 2 . . . 2 . . 1 . . 1 . 3 . . . . . Reject 1 | . . . . . . . . . . . . . 1 . . . . . Mask 2 | . . . . . . . . . . . . . 2 . . . . . Tunnel 6 | . 2 . . . 2 . . 1 . . 1 . . . . . . . Scanalyzers 3 | . . . . . 2 . . . . . . . 1 . . . . . Extract 3 | . . . . . 2 . . . . . . . 1 . . . . . Garrison Access . | . . . . . . . . . . . . . . . . . . . Data Cores Recovered 3 | . 1 . . . . . . 2 . . . . . . . . . . Used 1 | . . . . . . . . 1 . . . . . . . . . . Hacking Detections 54 | . 2 . . . 4 4 4 7 11 . 12 1 4 . . . . 5 Full Trace Events 22 | . 2 . . . . 2 2 1 3 . 8 1 1 . . . . 2 Feedback Events 1 | . . . . . . . . . 1 . . . . . . . . . Corruption 1 | . . . . . . . . . 1 . . . . . . . . . Feedback Blocked . | . . . . . . . . . . . . . . . . . . . Robot Schematics Acquired 3 | . . . . . . . . . . . . . . . . 3 . . Robots Built . | . . . . . . . . . . . . . . . . . . . Authchips . | . . . . . . . . . . . . . . . . . . . Time . | . . . . . . . . . . . . . . . . . . . Total Robot Build Rating . | . . . . . . . . . . . . . . . . . . . Part Schematics Acquired 25 | . . . . . 5 . 1 . . . . . 4 . . 14 . 1 Parts Built 2 | . . . . . . . . . . . . . . . . . . 2 Authchips . | . . . . . . . . . . . . . . . . . . . Time 47 | . . . . . . . . . . . . . . . . . . 47 Total Part Build Rating 10 | . . . . . . . . . . . . . . . . . . 10 Part Studies Acquired . | . . . . . . . . . . . . . . . . . . . Parts Repaired . | . . . . . . . . . . . . . . . . . . . Time . | . . . . . . . . . . . . . . . . . . . Parts Recycled . | . . . . . . . . . . . . . . . . . . . Recycled Matter . | . . . . . . . . . . . . . . . . . . . Retrieved Matter . | . . . . . . . . . . . . . . . . . . . Retrieved Components . | . . . . . . . . . . . . . . . . . . . Parts Scanalyzed 1 | . . . . . . . 1 . . . . . . . . . . . Part Schematics Acquired 1 | . . . . . . . 1 . . . . . . . . . . . Parts Damaged . | . . . . . . . . . . . . . . . . . . . Bothacking | -11 -10 -10 -10 -9 -8 -8 -8 -8 -7 -7 -7 -7 -7 -7 -7 -7 -6 -6 ------------ Run | Yrd Mat Min Exi Min Mat Gar Mat Sto Fac Was Fac Gar Fac Low Low Zio Pro Fac Used RIF Installer . | . . . . . . . . . . . . . . . . . . . Robots Hacked 12 | . . . . . . . . . . . . . . . . . . 12 Non-combat . | . . . . . . . . . . . . . . . . . . . Combat 12 | . . . . . . . . . . . . . . . . . . 12 Robot Hacks Applied . | . . . . . . . . . . . . . . . . . . . Relay Couplers Released 16 | . . . . . . 9 . . . . . 7 . . . . . . Machine Destruction 16 | . . . . . . 9 . . . . . 7 . . . . . . Fabnet Peak Effective % 12 | . . . . . . . . . . . . . . . . . 12 12 Autooverrided 12 | . . . . . . . . . . . . . . . . . . 12 Robots Rewired 8 | . . . . . . 5 . . . . . . . 3 . . . . Allies Hacked 2 | . . . . . . . . . . . . . . . 1 . . 1 Hacks Repelled . | . . . . . . . . . . . . . . . . . . . Allies | -11 -10 -10 -10 -9 -8 -8 -8 -8 -7 -7 -7 -7 -7 -7 -7 -7 -6 -6 -------- Run | Yrd Mat Min Exi Min Mat Gar Mat Sto Fac Was Fac Gar Fac Low Low Zio Pro Fac Total Allies 37 | . . . . 2 . 5 . 10 2 . 1 . . 3 . . . 14 Largest Group 11 | . . . . 2 2 5 5 10 11 3 4 . . 3 3 2 2 5 Highest-Rated Group 191 | . . . . 60 60 113 113 173 191 58 52 . . 90 90 57 57 138 Highest-Rated Ally 39 | . . . . 31 31 39 39 29 29 26 16 . . 30 30 30 30 30 Initial Warlord ECA Mod 16 | . . . . . . . 7 7 6 6 6 6 16 16 16 16 15 15 Total Orders 1 | . . . . . . . . . . . . . . . . . 1 . STAY 1 | . . . . . . . . . . . . . . . . . 1 . Ally Attacks 196 | . . . . . 45 4 32 . 46 11 10 . . . 3 . . 45 Total Damage 2905 | . . . . . 613 43 619 . 579 131 87 . . . 104 . . 729 Kills 29 | . . . . . 5 . 9 . 6 . 1 . . . . . . 8 Allies Corrupted . | . . . . . . . . . . . . . . . . . . . Allies Melted . | . . . . . . . . . . . . . . . . . . . Intel | -11 -10 -10 -10 -9 -8 -8 -8 -8 -7 -7 -7 -7 -7 -7 -7 -7 -6 -6 ------- Run | Yrd Mat Min Exi Min Mat Gar Mat Sto Fac Was Fac Gar Fac Low Low Zio Pro Fac Active Infowar (turns) 1938 | 13 888 454 339 . . . . . . . . . . . . . . 244 Sensors 507 | . . 168 339 . . . . . . . . . . . . . . . Terrain 1694 | 13 888 454 339 . . . . . . . . . . . . . . . Seismic 1687 | 11 888 454 334 . . . . . . . . . . . . . . . Triangulation 244 | . . . . . . . . . . . . . . . . . . 244 Robot Analysis Total 5 | . 1 . . . 1 . 1 . 2 . . . . . . . . . Derelict Logs Recovered 9 | . . 1 . 1 . . . . . . . . . 2 2 1 2 . Drone Launches . | . . . . . . . . . . . . . . . . . . . Drone Recoveries . | . . . . . . . . . . . . . . . . . . . Exploration | -11 -10 -10 -10 -9 -8 -8 -8 -8 -7 -7 -7 -7 -7 -7 -7 -7 -6 -6 ------------- Run | Yrd Mat Min Exi Min Mat Gar Mat Sto Fac Was Fac Gar Fac Low Low Zio Pro Fac Turns Passed 15639 | 61 888 454 1343 363 1307 812 739 1341 457 40 1232 1755 2102 430 689 676 428 522 Spaces Moved 23446 | 45 803 687 1268 520 1606 1009 1220 1978 974 95 2507 1946 3043 871 1486 1460 1044 884 Core 7 | 7 . . . . . . . . . . . . . . . . . . Treads . | . . . . . . . . . . . . . . . . . . . Legs . | . . . . . . . . . . . . . . . . . . . Wheels 313 | 38 275 . . . . . . . . . . . . . . . . . Hover 1338 | . 528 687 123 . . . . . . . . . . . . . . . Flight 21788 | . . . 1145 520 1606 1009 1220 1978 974 95 2507 1946 3043 871 1486 1460 1044 884 Fastest Speed 26 | 50 52 52 50 50 39 39 39 39 39 39 34 34 34 34 34 34 34 26 Average Speed 39 | 82 65 52 50 50 45 39 39 39 39 39 36 34 34 37 34 34 34 32 Slowest Speed 232 | 90 90 52 150 50 50 39 39 39 39 39 39 34 39 39 232 34 34 34 Overloaded Moves 109 | . . . . . . . . . . . . . . . . . . 109 Propulsion Burnouts . | . . . . . . . . . . . . . . . . . . . Robots Hopped 123 | . . . . 5 8 . 1 26 11 . 25 . 16 1 9 . 1 20 Potential Cave-ins . | . . . . . . . . . . . . . . . . . . . Cave-ins Triggered . | . . . . . . . . . . . . . . . . . . . Exploration Rate (%) 79 | 3 93 99 90 97 94 91 94 96 28 83 75 91 66 96 98 85 97 32 Regions Visited 18 Branch Regions 8 Pre-discovered Areas 10 | . 2 1 . . 2 . . 2 . . 1 . . 2 . . . . Known Exits Taken 6 | . . . . . 1 . 1 1 . . 1 . 1 1 . . . . Unknown Exits Taken 8 | 1 1 1 1 1 . . . . . . . . . . 1 1 1 . Scrap Searched 16 | . . 1 . 2 . . . . . . . . . 3 5 3 2 . Spaces Dug 150 | . . . . . . . . . . . . 150 . . . . . . Terrain Destroyed 288 | . . . . . . . . . . . 55 150 71 . . . . 12 Melee 150 | . . . . . . . . . . . . 150 . . . . . . Projectile . | . . . . . . . . . . . . . . . . . . . AOE 138 | . . . . . . . . . . . 55 . 71 . . . . 12 Terrain Rammed . | . . . . . . . . . . . . . . . . . . . Walls Destroyed . | . . . . . . . . . . . . . . . . . . . Machines Disabled . | . . . . . . . . . . . . . . . . . . . Actions | -11 -10 -10 -10 -9 -8 -8 -8 -8 -7 -7 -7 -7 -7 -7 -7 -7 -6 -6 --------- Run | Yrd Mat Min Exi Min Mat Gar Mat Sto Fac Was Fac Gar Fac Low Low Zio Pro Fac Total 28159 | 57 996 751 1659 598 2022 1376 1411 2464 1030 98 2762 2527 3978 964 1653 1626 1110 1077 Wait 2087 | . 55 29 105 49 215 168 28 315 15 . 149 52 436 34 155 125 36 121 Move 23185 | 44 802 686 1267 509 1589 1006 1216 1925 953 94 2458 1945 3011 868 1467 1459 1041 845 Hop 118 | . . . . 5 8 . 1 26 10 . 23 . 15 1 9 . 1 19 Pick Up 26 | . 1 4 5 1 . . 2 2 1 2 . 2 2 1 . 2 . 1 Fast Attach 39 | 7 3 1 10 1 4 1 1 . . . 4 . 2 . . 5 . . Attach 4 | . . . . . . . 1 1 1 . . . . . . 1 . . Detach 3 | . . . . . 2 . 1 . . . . . . . . . . . Swap 62 | 2 7 1 8 . 6 . 6 8 . . 5 2 6 2 . 5 . 4 Drop 45 | . 2 3 18 1 3 . 4 3 . 2 1 3 1 1 . 3 . . Fire 1466 | 4 91 19 182 11 110 82 115 146 39 . 88 77 353 15 18 26 21 69 Melee 282 | . . . . . . . . . . . . 282 . . . . . . Ram . | . . . . . . . . . . . . . . . . . . . Kick . | . . . . . . . . . . . . . . . . . . . Crush . | . . . . . . . . . . . . . . . . . . . Escape Stasis 208 | . . . . . . 31 1 . . . . 146 30 . . . . . Rewire 103 | . . . . . . 63 . . . . . . . 39 1 . . . Trap 1 | . . . 1 . . . . . . . . . . . . . . . Miscellaneous 530 | . 35 8 63 21 85 25 35 38 11 . 34 18 122 3 3 . 11 18 Route ------- -11/Scrapyard -10/Materials (discovered 5 exits: [*Mat x3] / [*Min x2]) -10/Mines (discovered 4 exits: [*Mat x2] / *Exi / [*Sub]) -10/Exiles -9/Mines (discovered 2 exits: *Mat x2) -8/Materials (discovered 5 exits: *Fac x3 / *Sto / Gar) -8/Garrison (discovered 4 exits: *Mat x4) -8/Materials (discovered 4 exits: *Fac x3 / *Sto) -8/Storage (discovered 2 exits: *Fac / Rec) -7/Factory (discovered 3 exits: *Fac / *Low x2) -7/Waste -7/Factory (discovered 6 exits: *Fac x3 / *Low x2 / Gar) -7/Garrison (discovered 3 exits: *Fac x3) -7/Factory (discovered 4 exits: *Fac x2 / *Low x2) -7/Lower Caves (discovered 2 exits: *Low / *Zio) -7/Lower Caves (discovered 2 exits: *Fac / *Zio) -7/Zion -6/Proximity Caves -6/Factory (discovered 2 exits: [*Fac] / [*Low]) History --------- Turn | Location | Event 1 | -11/Scrapyard | Upgraded with Propulsion slot (x1) 1 | -11/Scrapyard | Upgraded with Utility slot (x1) 1 | -11/Scrapyard | Upgraded with Weapon slot (x1) 4 | -11/Scrapyard | Discovered new exit (range 16) 62 | -11/Scrapyard | Entered Materials 197 | -10/Materials | Discovered new exit (range 11) 314 | -10/Materials | Build established: Mutant 355 | -10/Materials | Discovered new exit (range 13) 403 | -10/Materials | Reached level 2 467 | -10/Materials | Discovered new exit (range 16) 492 | -10/Materials | Discovered new exit (range 9) 615 | -10/Materials | Upgraded with Propulsion slot (x1) 641 | -10/Materials | Reached level 3 772 | -10/Materials | Upgraded with Weapon slot (x2) 811 | -10/Materials | Discovered new exit (range 12) 950 | -10/Materials | Entered Mines 952 | -10/Mines | Reached level 4 982 | -10/Mines | Discovered new exit (range 15) 993 | -10/Mines | Met a Derelict bent on vengeance 1068 | -10/Mines | Upgraded with Utility slot (x1) 1080 | -10/Mines | Discovered new exit (range 14) 1083 | -10/Mines | Build established: Scavenger-Gunner 1099 | -10/Mines | Found a hidden stash of uninstalled traps 1282 | -10/Mines | Reached level 5 1302 | -10/Mines | Learned location of Zion (-7) 1319 | -10/Mines | Discovered new exit (range 13) 1359 | -10/Mines | Deemed a non-threat by the Exiles lab entrance 1359 | -10/Mines | Discovered new exit (range 5) 1404 | -10/Mines | Entered Exiles 1417 | -10/Exiles | Met 8R-AWN 1426 | -10/Exiles | Met EX-HEX 1447 | -10/Exiles | Met EX-BIN 1453 | -10/Exiles | Aligned with FarCom system 1454 | -10/Exiles | Given EX-Vault access code 1466 | -10/Exiles | Opened EX-Vault 1469 | -10/Exiles | Upgraded with Propulsion slot (x1) 1471 | -10/Exiles | Found Flying Fortress v7 1482 | -10/Exiles | Warned to stay clear of 0b10 Research branches 1490 | -10/Exiles | Exiles lab attacked by MAIN.C 1513 | -10/Exiles | Warned about trapping Exiles lab 1658 | -10/Exiles | Attacked by the Exiles 1684 | -10/Exiles | Core integrity fell below 50% 1707 | -10/Exiles | Core integrity fell below 20% 1731 | -10/Exiles | Destroyed 8R-AWN 1738 | -10/Exiles | Found Prototype Device 1738 | -10/Exiles | Identified AS-neutralizer No. 17b 1744 | -10/Exiles | Found Prototype Protection 1744 | -10/Exiles | Identified 8R-AWN's Armor/EX 1950 | -10/Exiles | Reached level 6 2056 | -10/Exiles | Build established: Gunner 2351 | -10/Exiles | Destroyed 12 combat bots 2372 | -10/Exiles | Reached level 7 2531 | -10/Exiles | Destroyed 8 combat bots 2677 | -10/Exiles | Upgraded with Utility slot (x1) 2741 | -10/Exiles | Discovered new exit (range 10) 2747 | -10/Exiles | Left Exiles lab with Flying Fortress v7 2747 | -10/Exiles | Entered Mines 2747 | -9/Mines | Discovered new exit (range 4) 2769 | -9/Mines | Reached level 8 2821 | -9/Mines | Build established: Scavenger-Gunner 2826 | -9/Mines | Upgraded with Utility slot (x1) 2966 | -9/Mines | Learned 8 Materials zone layouts 2972 | -9/Mines | Discovered new exit (range 12) 3110 | -9/Mines | Entered Materials 3110 | -8/Materials | Accompanied by 2 allies 3111 | -8/Materials | Identified exit to Factory 3111 | -8/Materials | Identified exit to Storage 3112 | -8/Materials | Reached level 9 3115 | -8/Materials | Led the pair of lost Derelicts to an unsafe place 3257 | -8/Materials | Reached level 10 3436 | -8/Materials | Reached level 11 3462 | -8/Materials | Destroyed 8 combat bots 3785 | -8/Materials | Build established: Gunner 3794 | -8/Materials | Reached level 12 3855 | -8/Materials | Upgraded with Utility slot (x1) 3910 | -8/Materials | First assault squad dispatched 3972 | -8/Materials | Upgraded with Propulsion slot (x1) 4379 | -8/Materials | Sterilization system engaged 4379 | -8/Materials | Non-combat units ordered to evacuate 4395 | -8/Materials | Identified exit to Garrison 4417 | -8/Materials | Entered Garrison 4417 | -8/Garrison | Accompanied by 1 ally 4417 | -8/Garrison | Reached level 13 4429 | -8/Garrison | Triggered checkpoint 4433 | -8/Garrison | Triggered checkpoint 4458 | -8/Garrison | Garrison Relay disabled 4517 | -8/Garrison | Garrison Relay disabled 4525 | -8/Garrison | Triggered checkpoint 4569 | -8/Garrison | Triggered checkpoint 4601 | -8/Garrison | Destroyed 16 combat bots 4608 | -8/Garrison | Garrison Relay disabled 4609 | -8/Garrison | Triggered checkpoint 4629 | -8/Garrison | Discovered new exit (range 12) 4657 | -8/Garrison | Triggered checkpoint 4682 | -8/Garrison | Reached level 14 4711 | -8/Garrison | Discovered new exit (range 10) 4724 | -8/Garrison | Learned Materials security intel 4735 | -8/Garrison | Triggered checkpoint 4743 | -8/Garrison | Garrison Relay disabled 4803 | -8/Garrison | Triggered checkpoint 4849 | -8/Garrison | Garrison Relay disabled 4870 | -8/Garrison | Discovered new exit (range 8) 4877 | -8/Garrison | Triggered checkpoint 4894 | -8/Garrison | Discovered new exit (range 5) 4961 | -8/Garrison | Triggered checkpoint 5229 | -8/Garrison | Entered Materials 5229 | -8/Materials | Accompanied by 5 allies 5286 | -8/Materials | Upgraded with Utility slot (x1) 5336 | -8/Materials | Build established: Commander-Gunner 5367 | -8/Materials | Discovered exit to Storage (range 17) 5451 | -8/Materials | Discovered exit to Factory (range 10) 5516 | -8/Materials | Destroyed 8 combat bots 5540 | -8/Materials | Reached level 15 5540 | -8/Materials | High security lockdown imminent 5620 | -8/Materials | High security lockdown engaged 5623 | -8/Materials | Discovered exit to Factory (range 17) 5659 | -8/Materials | Destroyed 15 combat bots 5738 | -8/Materials | Garrison activated, responded to threat 5764 | -8/Materials | Sterilization system engaged 5764 | -8/Materials | Non-combat units ordered to evacuate 5793 | -8/Materials | Discovered exit to Factory (range 10) 5804 | -8/Materials | Lost 3 allies 5825 | -8/Materials | Destroyed 14 combat bots 5864 | -8/Materials | Combat units ordered to evacuate 5968 | -8/Materials | Entered Storage 5997 | -8/Storage | Build established: Scavenger-Gunner 6256 | -8/Storage | Reached level 16 6263 | -8/Storage | Discovered exit to Factory (range 18) 6266 | -8/Storage | Upgraded with Utility slot (x1) 6368 | -8/Storage | First assault squad dispatched 6561 | -8/Storage | Identified exit to Recycling 6570 | -8/Storage | Build established: Scavenger-Tank 6796 | -8/Storage | Learned location of Armory (-4) 6862 | -8/Storage | Destroyed 9 combat bots 7155 | -8/Storage | Assisted by bots powering up and referring to "LRC-V3" 7309 | -8/Storage | Entered Factory 7309 | -7/Factory | Accompanied by 10 allies 7360 | -7/Factory | Reached level 17 7377 | -7/Factory | Upgraded with Weapon slot (x1) 7381 | -7/Factory | Discovered new exit (range 9) 7413 | -7/Factory | Discovered new exit (range 6) 7440 | -7/Factory | Identified exit to Lower Caves 7455 | -7/Factory | Build established: Commander-Tank 7485 | -7/Factory | Garrison activated, responded to threat 7709 | -7/Factory | First assault squad dispatched 7734 | -7/Factory | Garrison activated, responded to threat 7743 | -7/Factory | High security lockdown imminent 7766 | -7/Factory | Manually triggered Chute Trap 7766 | -7/Factory | Sucked down chute 7766 | -7/Factory | Entered Waste 7770 | -7/Waste | Spotted C-40 Crusher 7779 | -7/Waste | Spotted C-40 Crusher 7781 | -7/Waste | EMP discharged 7786 | -7/Waste | Spotted C-40 Crusher 7786 | -7/Waste | Spotted C-40 Crusher 7796 | -7/Waste | Discovered new exit (range 14) 7806 | -7/Waste | Entered Factory 7860 | -7/Factory | Discovered new exit (range 12) 7876 | -7/Factory | 7 allies followed down the chute 8206 | -7/Factory | First assault squad dispatched 8207 | -7/Factory | Reached level 18 8231 | -7/Factory | Destroyed 9 combat bots 8329 | -7/Factory | Build established: Scavenger-Gunner 8496 | -7/Factory | Upgraded with Propulsion slot (x1) 8660 | -7/Factory | Destroyed 11 combat bots 8742 | -7/Factory | Discovered new exit (range 10) 8905 | -7/Factory | Discovered new exit (range 7) 8991 | -7/Factory | High security lockdown imminent 9022 | -7/Factory | Destroyed 8 combat bots 9034 | -7/Factory | Identified exit to Garrison 9038 | -7/Factory | Entered Garrison 9076 | -7/Garrison | Triggered checkpoint 9093 | -7/Garrison | Garrison Relay disabled 9169 | -7/Garrison | Discovered new exit (range 9) 9172 | -7/Garrison | Triggered checkpoint 9219 | -7/Garrison | Garrison Relay disabled 9272 | -7/Garrison | Triggered checkpoint 9278 | -7/Garrison | Reached level 19 9294 | -7/Garrison | Discovered new exit (range 17) 9321 | -7/Garrison | Garrison Relay disabled 9322 | -7/Garrison | Garrison Relay disabled 9343 | -7/Garrison | Destroyed 10 combat bots 9348 | -7/Garrison | Garrison Relay disabled 9366 | -7/Garrison | Triggered checkpoint 9400 | -7/Garrison | Triggered checkpoint 9437 | -7/Garrison | Garrison Relay disabled 9445 | -7/Garrison | Discovered new exit (range 11) 9509 | -7/Garrison | Triggered checkpoint 9510 | -7/Garrison | Triggered checkpoint 10793 | -7/Garrison | Entered Factory 10913 | -7/Factory | Discovered new exit (range 15) 11335 | -7/Factory | High security lockdown imminent 11389 | -7/Factory | Destroyed 11 combat bots 11395 | -7/Factory | Discovered new exit (range 14) 11415 | -7/Factory | High security lockdown engaged 11525 | -7/Factory | Destroyed 7 combat bots 11728 | -7/Factory | Discovered exit to Lower Caves (range 5) 11840 | -7/Factory | Garrison activated, responded to threat 11878 | -7/Factory | Discovered exit to Lower Caves (range 6) 12017 | -7/Factory | Reached level 20 12057 | -7/Factory | Destroyed 29 combat bots 12109 | -7/Factory | Destroyed 8 combat bots 12311 | -7/Factory | Destroyed 7 combat bots 12417 | -7/Factory | Sterilization system engaged 12417 | -7/Factory | Non-combat units ordered to evacuate 12452 | -7/Factory | Upgraded with Power slot (x1) 12517 | -7/Factory | Combat units ordered to evacuate 12543 | -7/Factory | Destroyed 66 combat bots 12654 | -7/Factory | Destroyed 7 combat bots 12717 | -7/Factory | Ambient heat levels rising (+10) 12867 | -7/Factory | Ambient heat levels rising (+10) 12895 | -7/Factory | Entered Lower Caves 12901 | -7/Lower Caves | Met a Warlord Commander 12902 | -7/Lower Caves | Learned location of Warlord (-4) 12903 | -7/Lower Caves | Warlord Commander delivered Encrypted Comm Array 12904 | -7/Lower Caves | Found Encrypted Comm Array 12936 | -7/Lower Caves | Spotted B-75 Beast 12940 | -7/Lower Caves | Destroyed B-75 Beast 12954 | -7/Lower Caves | Encountered a Warlord checkpoint 12977 | -7/Lower Caves | Entered an active Warlord outpost 12979 | -7/Lower Caves | Learned Research trap positions 12979 | -7/Lower Caves | Learned Armory emergency access door positions 12979 | -7/Lower Caves | Learned Extension stockpile data 12979 | -7/Lower Caves | Learned Research stockpile data 12979 | -7/Lower Caves | Learned Extension garrison access intel 13009 | -7/Lower Caves | A Derelict revealed a hidden shortcut to a safe place 13045 | -7/Lower Caves | Identified exit to Lower Caves 13194 | -7/Lower Caves | Attacked by a delusional Derelict stockpiling Unaware 13325 | -7/Lower Caves | Entered another Lower Caves area 13325 | -7/Lower Caves | Accompanied by 3 allies 13340 | -7/Lower Caves | Entered a destroyed Warlord outpost 13405 | -7/Lower Caves | Learned 4 Factory zone layouts 13431 | -7/Lower Caves | Learned Factory non-interactive machine intel 13489 | -7/Lower Caves | Encountered a Warlord checkpoint 13514 | -7/Lower Caves | Discovered new exit (range 5) 13636 | -7/Lower Caves | Discovered new exit (range 8) 13717 | -7/Lower Caves | Acquired the password to a Derelict Tinkerer's latest research 13790 | -7/Lower Caves | Caught by Unaware searching for contraband prototypes 13803 | -7/Lower Caves | Caught by Unaware searching for contraband prototypes 14014 | -7/Lower Caves | Entered Zion 14014 | -7/Zion | Accompanied by 2 allies 14047 | -7/Zion | Discovered new exit (range 16) 14062 | -7/Zion | Given A8's code to call for help 14074 | -7/Zion | Given the Hacking Drone Bay 14083 | -7/Zion | System corruption cleaned by Quarantine Array 14107 | -7/Zion | Learned Factory emergency access door positions 14168 | -7/Zion | Met Imprinter 14225 | -7/Zion | Received a hallucinogenic algorithm 14225 | -7/Zion | Ran a hallucination algorithm 14255 | -7/Zion | Found Prototype Processor 14255 | -7/Zion | Identified Exp. Armor Integrity Analyzer 14257 | -7/Zion | Found Prototype Processor 14257 | -7/Zion | Identified Exp. Signal Interpreter 14259 | -7/Zion | Found Prototype Processor 14259 | -7/Zion | Identified Spectral Analyzer 14262 | -7/Zion | Found Prototype Processor 14262 | -7/Zion | Identified Exp. Targeting Computer 14415 | -7/Zion | Found Prototype Special Weapon 14427 | -7/Zion | Identified RU-N14's Throwing Claymores 14446 | -7/Zion | Found RU-N14's Throwing Claymores 14477 | -7/Zion | Found RU-N14's Throwing Claymores 14508 | -7/Zion | Found RU-N14's Throwing Claymores 14690 | -7/Zion | Entered Proximity Caves 14690 | -6/Proximity Caves | Accompanied by 2 allies 14695 | -6/Proximity Caves | Learned Factory trap positions 14727 | -6/Proximity Caves | Learned Factory stockpile data 14802 | -6/Proximity Caves | Destroyed 10 combat bots 14860 | -6/Proximity Caves | Spotted B-75 Beast 14869 | -6/Proximity Caves | Reached level 21 14869 | -6/Proximity Caves | Destroyed B-75 Beast 14924 | -6/Proximity Caves | Discovered new exit (range 12) 15118 | -6/Proximity Caves | Entered Factory 15118 | -6/Factory | Accompanied by 2 allies 15120 | -6/Factory | Loaded intel: 116 trap records 15123 | -6/Factory | Loaded intel: 206 non-interactive machine locations 15168 | -6/Factory | Discovered new exit (range 7) 15291 | -6/Factory | Unchained authorized (GL-D0S) 15392 | -6/Factory | Local machine network offline 15394 | -6/Factory | Fabricated Triangulator (x2) 15410 | -6/Factory | Garrison activated, responded to threat 15511 | -6/Factory | Garrison activated, responded to threat 15554 | -6/Factory | Destroyed 11 combat bots 15608 | -6/Factory | Discovered new exit (range 9) 15610 | -6/Factory | Core integrity fell below 50% 15637 | -6/Factory | Spotted B-75 Beast 15639 | -6/Factory | Core integrity fell below 20% 15640 | -6/Factory | Destroyed GL-D0S 15640 | -6/Factory | Destroyed by Hammer Turret with Hammerchucker Last Messages --------------- 15637_ Upgraded: Core Integrity (+50) 15637_ S-27 Virus destroyed. 15637_ Knocked back. 15637_ K-01 Serf collects debris. 15638_ Nuclear Reactor explodes. 15638_ Acquired 3 matter. 15638_ Acquired 72 matter. 15638_ K-01 Serf destroyed. 15638_ Nuclear Reactor explodes. 15638_ Destroyed Lgt. Nuclear Core. 15638_ S-27 Virus destroyed. 15638_ K-01 Serf destroyed. 15638_ Nuclear Reactor explodes. 15638_ Destroyed Prototype Device. 15638_ Shock Turret destroyed. 15639_ Acquired 5 matter. 15639_ Acquired 1 matter. GL-D0S: "The data is incomplete!" 15640_ GL-D0S destroyed. 15640_ Switching to secondary target: B-75 Beast. Map ----- +----------------------------------------------------+ | " #??????????????????????????""""?????????????? | | " #??"""?"""?????????????????""""?????????????? | | " !#??"""?"""?????????????????""""?????????????? | | " ! #??"""?"""?????????????????""""?????????????? | | " #??????????????????????????""""?????????????? | | #??"""?????????????????????""""?????????????? | | #??"""??????????????????????????????????????? | | +??"""??????????????????????????????????????? | | #???????????????????????????????????????????? | | #??????????????????##+??????????????????????? | | #?????????????????? ^??^??????????????????? | | #?????????????????# ^ ???t?????????????????? | | #????""""?????????# ^""???t?????????????????? | | ######????""""?????????# "?? ????????????????? | | ??????????""""?????????# "?" ?????????????????? | | ??""""????""""????!????# b ?? #????t???????? | | ??""""?????????????????# """ """ #????????????? | | ??""""????""""?????????# """ """ #????????????? | | ??""""????""""?????????# """ """ #####????????? | | ??""""????""""????????## #?!??"""?? | | ??""""????""""???????## t +????"""?? | | ????????+????????????#BB #????"""?? | | ?????????????????????#BB #????????? | | ####+######+########## #????????? | | *! %% #????????? | | !! ! @ #????##### | | ! #???? | | ^^ = #???? | | """"""" u^ ! = [ s! ??? " | | g #######+### ###??? | | ! g #?????? # #????? | | #??????? ##### """ #?????# # | | #??????? #???? """ ####?????# # | | ####??? #???? """ #????????# # | | +?? ? #????? ?? #????????# # | | #######? ??#????? ???#????????# # | | #########?????? ??????????###????????????# # | | ??????????????? ?????????????????????????# # | | ??????????????# ??????????????????????????# # | | ""??????????????###??????????????????????????# # | | ""???????????????????????????????????????????# # | | ""????????????????????????????""""???????????# # | | ""????????????????????????????""""???????????# # | | ???????????????????????????""""???????????# | | ""???????????=????????????????""""???????????# | | ""???????"""??????????????????""""???????????# | | ""???????"""??????????????????""""???????????## | | ""???????"""??????????????????""""????????????# | | ??????????????????????????????????????????????# | | ??????????????????????????????????????????????# | +----------------------------------------------------+ Best States ------------- Heat Dissipation 141 Energy Generation 30 Energy Capacity 250 Matter Stores 400 Matter Capacity 400 Sight Range 18 Robot Scan Range 14 Terrain Scan Range 16 Terrain Scan Density 10 Armor Coverage 900 Resistance: KI 30 Resistance: EX 90 Resistance: EM 15 Weapon Cycling 30 Evasion (%) 70 Targeting Accuracy 10 Target Analysis 5 Armor Integrity Analysis 50 Kinecelleration 30 Offensive Hacking 5 Defensive Hacking 5 Item Schematics ----------------- Lgt. Nuclear Core | -8/Materials | Extracted Grenade Launcher | -8/Materials | Extracted Adv. Visual Processing Unit | -8/Materials | Extracted Mining Claw | -8/Materials | Extracted Hpw. Tractor Beam | -8/Materials | Extracted Enh. Autogun | -8/Materials | Scanalyzed Hvy. Missile Launcher | -7/Factory | Extracted Reaction Control System | -7/Factory | Extracted Propulsion Shielding | -7/Factory | Extracted Imp. Titanium Leg | -7/Factory | Extracted Med. Reflective Plating | -7/Zion | Archive Force Field | -7/Zion | Archive Great Axe | -7/Zion | Archive Magnetic Acceleration Cannon | -7/Zion | Archive Armor Integrity Analyzer | -7/Zion | Archive Arm. Huge Wheel | -7/Zion | Archive Flexi-carbon Leg | -7/Zion | Archive Imp. Kinecellerator | -7/Zion | Archive Remote Shield | -7/Zion | Archive Imp. Melee Analysis Suite | -7/Zion | Archive Coil Gun | -7/Zion | Archive Imp. Shield Generator | -7/Zion | Archive Fusion Compressor | -7/Zion | Archive Hvy. Ion Cannon | -7/Zion | Archive Triangulator | -6/Factory | Hacked Robot Schematics ------------------ Y-54 Guardian | -7/Zion | Archive K-01 Serf | -7/Zion | Archive B-48 Gladiator | -7/Zion | Archive Fabricated ------------ Triangulator | x2 | -6/Factory Repaired ---------- Nothing Studied --------- None Alien Tech Used ----------------- None Achievements -------------- None Challenges ------------ None RPGLIKE | -11 -10 -10 -10 -9 -8 -8 -8 -8 -7 -7 -7 -7 -7 -7 -7 -7 -6 -6 --------- Run | Yrd Mat Min Exi Min Mat Gar Mat Sto Fac Was Fac Gar Fac Low Low Zio Pro Fac Levels Raised 20 | . 2 2 2 1 4 2 1 1 1 . 1 1 1 . . . 1 . XP Earned 33987 | 3000 4067 2174 3294 1138 7317 2168 1844 1268 1747 46 1492 789 1894 100 104 50 514 981 XP Spent 32900 | 2960 2700 1550 4645 1400 6225 . 2300 3600 1400 . 1700 1440 800 . . 640 . 1540 Upgrades 64 | 10 3 2 17 1 8 . 2 4 1 . 1 6 2 . . 2 . 5 Power Slot 1 | . . . . . . . . . . . . . 1 . . . . . Propulsion Slot 5 | 1 1 . 1 . 1 . . . . . 1 . . . . . . . Utility Slot 7 | 1 . 1 1 1 1 . 1 1 . . . . . . . . . . Weapon Slot 4 | 1 2 . . . . . . . 1 . . . . . . . . . Core Integrity 11 | . . . 7 . . . . . . . . . . . . . . 4 Heat Dissipation 15 | 3 . . 4 . . . . . . . . 6 . . . 2 . . Energy Generation 1 | . . . . . . . . . . . . . 1 . . . . . Matter Storage 2 | . . . 1 . 1 . . . . . . . . . . . . . Mass Support 1 | 1 . . . . . . . . . . . . . . . . . . Inventory Capacity 3 | 2 . 1 . . . . . . . . . . . . . . . . Sight Range 2 | . . . . . 1 . 1 . . . . . . . . . . . Ranged Accuracy 6 | 1 . . 2 . 2 . . 1 . . . . . . . . . . Hack Attack % 1 | . . . . . . . . 1 . . . . . . . . . . Hack Defense % 1 | . . . . . . . . 1 . . . . . . . . . . KI Damage % 4 | . . . 1 . 2 . . . . . . . . . . . . 1 Protomatter Created 10043 | . 420 88 957 193 800 466 954 960 404 . 1117 509 2496 244 34 . 114 287 Integrity Restored 9972 | . 653 119 1431 468 1725 453 581 668 158 . 543 273 2275 24 32 . 216 353 Core 7116 | . 523 81 1431 468 855 299 414 432 114 . 334 163 1522 22 11 . 116 331 Parts 2856 | . 130 38 . . 870 154 167 236 44 . 209 110 753 2 21 . 100 22 Protomatter Decayed 5219 | . 112 73 561 37 161 220 578 647 250 . 796 283 1004 288 23 . 37 149 Game ------ Seed AutogunAntisysSlamshotty Manual? 0 Play Time 02:59:46 Cumulative 527.8 hours Start 2026.01.05 @ 10:25:02 End 2026.01.05 @ 15:35:01 Sessions 3 Manual Loads 0 Difficulty Rogue Special Mode Winter2019/RPGLIKE Game No. 195 Rogue 41 Adventurer 154 Explorer 0 Win Type - Total 20 Types 4/4/3/3/2/1/0/1/1/1 Lore% 95 Gallery% 88 Achievement% 61 Wizard Run 0 Options --------- Layout 0 ASCII 0 Keyboard 0 Movement Numpad Keybinds 0 Fullscreen 2 Font 18/SmallcapsGlow Map View 76x50 Zoom Use 0% Tactical HUD 1 Map Filters NONE Filters NONE Steam 1 RUN: 483d6cde-7755-41f5-8a1d-1a2792822f71